bitfinex-derivatives/quotes_ETHF0:USTF0_20241017
["timestamp","ask_amount","ask_price","bid_price","bid_amount"]
[1729135135468,0.37971,2634.0,2633.9,1.17282]
[1729135136871,0.37971,2634.0,2633.9,2.40282]
[1729135137073,0.56271193,2634.2,2633.9,2.0231]
[1729135137288,0.94238193,2634.2,2634.1,1.23]
[1729135137465,2.17238193,2634.2,2634.1,1.23]
[1729135137878,2.17238193,2634.2,2634.1,1.6162]
[1729135142375,2.17238193,2634.2,2634.1,1.99589]
[1729135142670,0.37967,2634.2,2634.1,4.38835289]
[1729135142867,0.37967,2634.2,2634.1,2.98656518]
[1729135143074,0.37967,2634.2,2634.1,3.39761711]
[1729135143572,4.0438,2634.3,2634.1,8.2996874]
[1729135143774,4.0438,2634.3,2634.2,2.22059437]
[1729135143775,3.58747,2634.3,2634.2,2.22059437]
[1729135143975,3.58747,2634.3,2634.2,2.60026437]
[1729135144180,3.58747,2634.3,2634.2,2.22059437]
[1729135144978,0.37967,2634.3,2634.2,2.22059437]
[1729135147270,0.37967,2634.3,2634.2,3.62299341]
[1729135147480,1.60967,2634.3,2634.2,3.62299341]
[1729135147976,1.60967,2634.3,2634.2,2.22059437]
[1729135148181,1.60967,2634.3,2634.2,3.62324149]
[1729135149276,1.60967,2634.3,2634.2,4.11840741]
[1729135149475,1.60967,2634.3,2634.2,2.63264712]
[1729135149676,1.60967,2634.3,2634.2,4.11840741]
[1729135150071,1.60967,2634.3,2634.2,2.63264712]
[1729135150683,1.60967,2634.3,2634.2,2.22148592]
[1729135154274,0.37967,2634.3,2634.2,2.60115592]
[1729135154579,0.37967,2634.3,2634.2,2.63375051]
[1729135154875,0.37967,2634.3,2634.2,3.62584599]
[1729135155205,3.2078,2634.4,2634.3,0.37966]
[1729135155208,3.58746,2634.4,2634.3,0.37966]
[1729135155482,3.58745,2634.4,2634.3,4.90454626]
[1729135155676,3.58745,2634.4,2634.3,5.31054626]
[1729135155885,3.58745,2634.4,2634.3,4.93088626]
[1729135156381,0.37965,2634.4,2634.3,4.93088626]
[1729135157579,0.37965,2634.4,2634.3,4.93011646]
[1729135157779,0.37965,2634.4,2634.3,2.41896]
[1729135158327,0.37965,2634.4,2634.3,2.0393]
[1729135158876,3.2078,2634.6,2634.3,13.0653]
[1729135159189,0.37958,2634.9,2634.8,0.37957]
[1729135159382,0.37962,2634.6,2634.5,1.37050061]
[1729135159680,0.37962,2634.6,2634.5,1.60962]
[1729135159878,0.37962,2634.6,2634.5,5.40562]
[1729135160187,3.6184,2634.8,2634.5,1.23]
[1729135160418,3.6184,2634.8,2634.7,1.23]
[1729135160419,3.99799,2634.8,2634.7,1.23]
[1729135164181,0.79019,2634.8,2634.7,1.23]
[1729135164786,0.4106,2634.8,2634.7,1.23]
[1729135164991,0.79019,2634.8,2634.7,1.23]
[1729135169106,0.79019,2634.8,2634.7,1.6096]
[1729135169107,0.37959,2634.8,2634.7,1.6096]
[1729135169291,0.37959,2634.8,2634.7,2.60048061]
[1729135169592,0.37959,2634.8,2634.7,1.6096]
[1729135170595,0.37959,2634.8,2634.7,2.0143]
[1729135172292,0.37958,2634.9,2634.8,0.37958]
[1729135172496,0.94881,2635.3,2634.8,1.23]
[1729135172701,0.37958,2635.0,2634.9,0.37956]
[1729135173996,0.37958,2635.0,2634.9,1.60956]
[1729135174293,0.37958,2635.0,2634.9,1.60957]
[1729135176217,0.37958,2635.0,2634.9,1.23]
[1729135176591,0.37958,2635.0,2634.9,1.60957]
[1729135177394,0.37956,2635.0,2634.9,5.40476]
[1729135179200,0.37956,2635.0,2634.9,1.60956]
[1729135179596,0.37956,2635.0,2634.9,5.40476]
[1729135179901,0.37956,2635.0,2634.9,1.60957]
[1729135180997,3.2078,2635.5,2635.0,0.9489]
[1729135181199,3.2078,2635.5,2635.4,1.23]
[1729135181200,0.37949,2635.5,2635.4,1.23]
[1729135182905,0.37949,2635.5,2635.4,1.6208]
[1729135183547,0.37953,2635.2,2635.1,0.4145]
[1729135183805,0.37953,2635.2,2635.1,1.6445]
[1729135184904,0.37953,2635.2,2635.1,2.02404]
[1729135186295,0.37953,2635.2,2635.1,1.6445]
[1729135186897,0.37953,2635.2,2635.1,2.02404]
[1729135187300,0.37953,2635.2,2635.1,1.6445]
[1729135188294,0.37953,2635.2,2635.1,1.23]
[1729135188499,0.76843,2635.2,2635.1,1.23]
[1729135189607,0.76843,2635.2,2635.1,1.60954]
[1729135189802,0.76843,2635.2,2635.1,1.23]
[1729135190199,0.76843,2635.2,2635.1,1.60954]
[1729135194399,0.37953,2635.2,2635.1,2.03024]
[1729135195793,0.37952,2635.3,2635.2,0.37952]
[1729135196005,0.37952,2635.3,2635.2,1.60952]
[1729135197703,1.20632,2635.4,2635.3,0.37952]
[1729135198002,1.20632,2635.4,2635.3,1.60952]
[1729135200301,1.2063,2635.4,2635.3,1.60952]
[1729135200512,0.3795,2635.4,2635.3,1.60952]
[1729135200802,0.3795,2635.5,2635.4,0.37949]
[1729135201010,0.3795,2635.5,2635.4,1.6417]
[1729135201306,0.3795,2635.5,2635.4,2.0212]
[1729135201520,0.3795,2635.5,2635.4,1.6417]
[1729135201807,0.3795,2635.5,2635.4,2.0212]
[1729135203907,0.37949,2635.6,2635.5,0.37947]
[1729135204113,3.2078,2635.8,2635.5,2.0668]
[1729135204301,3.2078,2635.8,2635.7,1.60946]
[1729135204302,0.37945,2635.8,2635.7,1.60946]
[1729135205003,0.4139,2636.1,2635.7,14.2314]
[1729135205208,0.77709,2636.2,2636.1,0.3794]
[1729135205400,3.2078,2636.5,2636.1,2.8796]
[1729135205709,3.98484,2636.5,2636.4,1.23]
[1729135206099,3.98484,2636.5,2636.4,1.60936]
[1729135206906,3.6055,2636.5,2636.4,1.60936]
[1729135207097,0.37931,2636.7,2636.4,1.60935]
[1729135207302,0.37931,2636.7,2636.6,1.23]
[1729135209209,0.37931,2636.7,2636.5,0.76774]
[1729135209210,0.37933,2636.6,2636.5,0.3884]
[1729135209411,0.37933,2636.6,2636.2,0.37937]
[1729135209412,0.37937,2636.4,2636.3,1.23]
[1729135209598,1.60937,2636.4,2636.3,1.23]
[1729135209809,0.37937,2636.4,2636.3,1.23]
[1729135210707,0.37937,2636.4,2636.3,1.60937]
[1729135211302,0.37937,2636.4,2636.3,1.23]
[1729135211503,0.37937,2636.4,2636.3,1.60937]
[1729135211706,1.23,2636.7,2636.3,1.23]
[1729135211906,1.23,2636.7,2636.5,0.37934]
[1729135211907,0.37934,2636.6,2636.5,0.37934]
[1729135212402,1.23,2636.7,2636.2,0.4034]
[1729135212604,3.2078,2636.5,2635.7,0.99]
[1729135212805,0.37937,2636.4,2636.3,0.37937]
[1729135213010,0.37938,2636.3,2636.2,0.37938]
[1729135213511,0.37938,2636.3,2636.2,1.60938]
[1729135213713,0.37937,2636.4,2636.3,0.37937]
[1729135213911,0.37937,2636.4,2636.3,1.60937]
[1729135217511,3.2078,2636.5,2636.4,0.37936]
[1729135217708,3.2078,2636.5,2636.4,1.60936]
[1729135218717,3.58714,2636.5,2636.4,1.60936]
[1729135219014,3.2078,2636.5,2636.4,1.60936]
[1729135219610,3.58714,2636.5,2636.4,1.60936]
[1729135220018,3.2078,2636.5,2636.4,1.60936]
[1729135220715,3.2078,2636.5,2636.4,5.40216]
[1729135221208,0.77271,2636.8,2636.4,5.0228]
[1729135221409,0.77271,2636.8,2636.7,1.60931]
[1729135222819,0.7727,2636.8,2636.7,1.23]
[1729135223019,0.7727,2636.8,2636.7,1.60931]
[1729135223317,1.23,2636.9,2636.8,0.37929]
[1729135223318,0.3793,2636.9,2636.8,0.37929]
[1729135223551,0.3793,2636.9,2636.8,1.60929]
[1729135223715,0.3793,2636.9,2636.8,1.23]
[1729135224415,0.4201,2637.3,2636.8,1.23]
[1729135224416,3.2078,2637.6,2636.8,16.40883]
[1729135224619,0.3792,2637.5,2637.4,1.23]
[1729135225215,0.77819,2637.6,2637.5,0.3792]
[1729135225420,0.77819,2637.6,2637.5,1.23]
[1729135225723,0.77819,2637.6,2637.5,1.6092]
[1729135226218,0.77819,2637.6,2637.5,1.23]
[1729135226515,0.77819,2637.6,2637.5,1.6092]
[1729135226820,0.77819,2637.6,2637.5,1.23]
[1729135229418,0.399,2637.6,2637.5,1.6092]
[1729135229730,3.2078,2637.9,2637.8,0.37916]
[1729135229731,3.58695,2637.9,2637.8,0.37916]
[1729135230062,3.58695,2637.9,2637.8,1.60916]
[1729135230134,3.58695,2637.9,2637.8,1.23]
[1729135230325,3.6201,2637.9,2637.8,1.23]
[1729135230616,3.99924,2637.9,2637.8,1.23]
[1729135230819,3.99924,2637.9,2637.7,0.37916]
[1729135230820,0.37916,2637.8,2637.7,0.37916]
[1729135231077,3.6201,2637.9,2637.8,0.37916]
[1729135231218,3.6201,2637.9,2637.8,1.60916]
[1729135231624,3.99924,2637.9,2637.8,1.60916]
[1729135232014,3.6201,2637.9,2637.8,1.60916]
[1729135232209,3.6201,2637.9,2637.8,1.23]
[1729135232424,3.6201,2637.9,2637.8,1.60916]
[1729135233122,3.99924,2637.9,2637.8,1.23]
[1729135233424,3.99924,2637.9,2637.8,1.60916]
[1729135233818,3.6201,2637.9,2637.8,1.60916]
[1729135234329,0.4123,2637.9,2637.8,1.60916]
[1729135237026,0.79144,2637.9,2637.8,1.60916]
[1729135240422,0.4123,2637.9,2637.8,1.60916]
[1729135240729,3.6186,2638.3,2637.8,1.23]
[1729135240924,0.37913,2638.1,2638.0,0.37912]
[1729135241328,0.37913,2638.1,2638.0,1.60912]
[1729135243129,0.37913,2638.1,2638.0,1.23]
[1729135243332,0.37913,2638.1,2638.0,1.60913]
[1729135248227,0.77491,2638.2,2638.1,0.37911]
[1729135248426,0.3958,2638.2,2638.1,2.43181]
[1729135248743,0.7749,2638.2,2638.1,2.43181]
[1729135249337,0.37908,2638.4,2638.3,0.37908]
[1729135249531,0.37905,2638.6,2638.5,0.37904]
[1729135249738,0.37905,2638.6,2638.5,1.60904]
[1729135249977,0.37905,2638.6,2638.5,5.39864]
[1729135250137,3.2078,2638.7,2638.5,5.0196]
[1729135250329,3.58683,2638.7,2638.6,6.23124]
[1729135250635,3.6217,2639.1,2638.6,6.2744]
[1729135250828,3.2078,2639.1,2639.0,1.60898]
[1729135251028,0.8216,2639.7,2639.0,2.46]
[1729135251221,1.20048,2639.7,2639.6,1.23]
[1729135251628,0.4139,2639.7,2639.6,1.6089]
[1729135251835,0.37888,2639.8,2639.6,1.60889]
[1729135252130,0.78428685,2640.0,2639.7,1.23]
[1729135252325,1.16312685,2640.0,2639.9,1.23]
[1729135253634,0.75542685,2640.0,2639.9,1.23]
[1729135253829,0.37658685,2640.0,2639.8,2.66]
[1729135254140,0.2,2640.0,2639.9,4.16685]
[1729135254339,0.2,2640.0,2639.9,4.97125]
[1729135254540,0.2,2640.0,2639.9,10.97125]
[1729135256732,3.2078,2640.4,2639.9,10.5924]
[1729135256936,0.3788,2640.3,2640.2,3.0388]
[1729135257141,0.3788,2640.3,2640.2,6.4472]
[1729135257335,0.3788,2640.3,2640.2,6.82601]
[1729135257536,0.3788,2640.3,2640.2,6.4472]
[1729135257737,0.3788,2640.3,2640.2,6.82601]
[1729135257937,3.2078,2640.4,2640.2,6.4472]
[1729135258135,3.2078,2640.4,2639.8,3.2078]
[1729135258136,0.37884,2640.0,2639.8,4.02386]
[1729135258746,0.37885,2640.0,2639.8,3.03886]
[1729135259138,0.7851,2640.3,2639.8,2.66]
[1729135259435,0.37885,2639.9,2639.8,2.66]
[1729135259740,3.2078,2640.1,2639.8,3.03887]
[1729135260047,0.37884,2640.0,2639.9,0.37885]
[1729135260446,3.2078,2640.1,2639.9,0.37885]
[1729135260447,3.2078,2640.1,2639.9,9.788]
[1729135260752,3.2078,2640.1,2640.0,6.82684]
[1729135261242,3.2078,2640.1,2640.0,12.82684]
[1729135261637,0.4143,2640.7,2640.0,12.448]
[1729135261638,0.37879,2640.4,2640.0,12.448]
[1729135261948,3.2078,2640.6,2640.0,2.66]
[1729135262238,0.3788,2640.3,2640.1,0.37882]
[1729135262485,0.3788,2640.3,2640.0,2.66]
[1729135262486,0.37882,2640.2,2640.0,3.03883]
[1729135262643,0.37881,2640.3,2640.1,0.37883]
[1729135262846,3.2078,2640.6,2640.0,3.03883]
[1729135263044,3.2078,2640.6,2640.0,2.66]
[1729135263246,0.37882,2640.2,2640.0,3.03883]
[1729135263542,0.37881,2640.3,2640.1,0.37883]
[1729135263750,0.37882,2640.2,2640.0,3.03883]
[1729135264251,0.37883,2640.1,2640.0,3.03883]
[1729135264442,3.2078,2640.6,2640.0,3.03883]
[1729135264641,0.37883,2640.1,2640.0,3.03883]
[1729135264844,0.37883,2640.1,2640.0,2.66]
[1729135265142,0.37883,2640.1,2640.0,3.03884]
[1729135265545,0.37882,2640.2,2640.1,0.37882]
[1729135265747,3.2078,2640.6,2640.0,2.66]
[1729135265945,0.37882,2640.2,2640.0,2.66]
[1729135266155,0.37883,2640.1,2640.0,3.03883]
[1729135266345,4.15471,2640.6,2640.0,3.03883]
[1729135266850,0.37883,2640.1,2640.0,3.03883]
[1729135267651,0.37883,2640.1,2639.8,0.422]
[1729135267652,0.37885,2639.9,2639.8,2.66]
[1729135267947,0.37889,2639.7,2639.6,0.37889]
[1729135268152,0.3924,2640.0,2639.5,2.66]
[1729135268454,0.37887,2639.8,2639.7,0.37887]
[1729135269849,0.37888,2639.8,2639.7,0.37888]
[1729135270243,0.3924,2640.0,2639.7,0.37888]
[1729135270445,0.37886,2639.9,2639.8,0.37886]
[1729135270750,0.3924,2640.0,2639.5,4.0416]
[1729135271152,0.37887,2639.8,2639.7,0.37888]
[1729135271448,0.37887,2639.8,2639.3,2.66]
[1729135271449,0.37893,2639.4,2639.3,2.66]
[1729135271644,0.37895,2639.3,2639.2,0.37895]
[1729135271844,3.2078,2639.7,2639.1,3.2078]
[1729135272049,0.37892,2639.5,2639.2,2.66]
[1729135272244,0.4134,2639.6,2639.5,0.37891]
[1729135272452,0.4134,2639.6,2639.5,3.03891]
[1729135272651,3.2078,2639.7,2639.6,0.3789]
[1729135272961,0.3924,2640.0,2639.9,0.37885]
[1729135273652,0.77124,2640.0,2639.9,0.37885]
[1729135273960,0.3924,2640.0,2639.8,2.66]
[1729135274149,0.37885,2639.9,2639.8,2.66]
[1729135274544,0.37888,2639.7,2639.6,3.83479]
[1729135274746,3.6002,2640.0,2639.4,2.66]
[1729135275063,0.37891,2639.5,2639.4,2.66]
[1729135275255,4.54732,2640.0,2639.4,2.66]
[1729135275648,1.33952,2640.0,2639.4,2.66]
[1729135275842,0.37891,2639.5,2639.4,3.03892]
[1729135276849,0.37891,2639.5,2639.4,2.66]
[1729135277148,3.6002,2640.0,2639.2,2.66]
[1729135277353,3.2078,2639.7,2638.8,0.4194]
[1729135277550,2.66,2639.9,2638.8,3.03901]
[1729135277551,0.379,2638.9,2638.8,3.03901]
[1729135277852,3.2078,2639.4,2638.8,2.66]
[1729135278057,0.37898,2639.0,2638.9,0.37899]
[1729135278250,0.3918,2639.2,2638.8,2.66]
[1729135278447,0.3918,2639.2,2639.0,2.66]
[1729135278751,0.37897,2639.1,2639.0,3.03897]
[1729135279257,0.77076,2639.2,2639.1,0.37897]
[1729135279854,0.3918,2639.2,2639.0,2.66]
[1729135280046,0.3918,2639.2,2639.0,3.03897]
[1729135280047,0.37897,2639.1,2639.0,3.03897]
[1729135281555,0.37897,2639.1,2639.0,2.66]
[1729135282055,0.37897,2639.1,2639.0,3.03898]
[1729135282449,0.77076,2639.2,2639.1,0.37897]
[1729135283247,0.37897,2639.1,2639.0,2.66]
[1729135283446,0.78397,2639.1,2639.0,2.66]
[1729135283853,0.405,2639.1,2639.0,2.66]
[1729135284060,0.78397,2639.1,2639.0,3.03898]
[1729135284451,0.78397,2639.1,2639.0,2.66]
[1729135285157,0.78397,2639.1,2639.0,3.03898]
[1729135285551,0.78397,2639.1,2639.0,2.66]
[1729135285856,0.78397,2639.1,2639.0,3.03898]
[1729135286256,0.3918,2639.2,2639.0,2.66]
[1729135286459,0.3918,2639.2,2639.1,0.37897]
[1729135286759,3.2078,2639.4,2639.1,0.3975]
[1729135287154,0.37894,2639.3,2639.2,0.37895]
[1729135287586,1.11926618,2639.9,2639.1,0.3975]
[1729135287587,4.15503,2639.7,2639.1,0.3975]
[1729135287758,0.4036,2639.5,2639.1,0.3975]
[1729135288080,0.37895,2639.2,2639.1,0.77646]
[1729135288359,0.37897,2639.1,2639.0,0.76528]
[1729135288566,0.37897,2639.2,2639.1,0.37897]
[1729135288958,0.4036,2639.5,2639.0,0.3863]
[1729135289160,0.37896,2639.2,2639.1,0.37896]
[1729135289362,0.4036,2639.5,2639.2,0.37895]
[1729135289363,0.37895,2639.3,2639.2,0.37895]
[1729135289862,0.4036,2639.5,2639.2,2.66]
[1729135290062,0.37891,2639.5,2639.4,3.03893]
[1729135290651,3.6003,2639.7,2639.5,0.37891]
[1729135290652,0.77139,2639.7,2639.5,0.37891]
[1729135290867,0.77139,2639.7,2639.6,0.3789]
[1729135291056,0.37889,2639.7,2639.6,0.3789]
[1729135291252,0.37886,2639.9,2639.8,0.37886]
[1729135291753,3.2078,2640.5,2639.8,15.6558]
[1729135291955,3.2078,2640.5,2640.1,3.03882]
[1729135292161,0.3788,2640.3,2640.2,0.37881]
[1729135292552,3.2078,2640.5,2640.2,0.37881]
[1729135292553,0.37878,2640.4,2640.2,0.37881]
[1729135292762,0.37881,2640.3,2640.2,0.37881]
[1729135292965,3.2078,2640.5,2640.2,3.7872]
[1729135293164,0.94679,2640.9,2640.2,3.7872]
[1729135293165,0.37871,2640.9,2640.5,0.37877]
[1729135293364,0.37867,2641.2,2641.0,0.37869]
[1729135293667,0.3988,2641.3,2640.8,2.66]
[1729135293904,0.3787,2641.0,2640.8,3.03872]
[1729135294161,0.3988,2641.3,2640.8,2.66]
[1729135294363,0.37867,2641.2,2640.8,0.37871]
[1729135294565,0.3988,2641.3,2640.8,0.37872]
[1729135294765,0.3787,2641.0,2640.8,0.37872]
[1729135295266,0.37874,2640.7,2640.6,1.2062]
[1729135295561,0.37874,2640.7,2640.6,0.8047]
[1729135295771,0.37874,2640.7,2640.6,4.5919]
[1729135296060,0.37873,2640.8,2640.6,4.97065]
[1729135296265,4.15448,2641.2,2640.6,0.8047]
[1729135296473,0.37874,2640.7,2640.6,0.3885]
[1729135297057,0.37874,2640.7,2640.6,0.76725]
[1729135297262,4.15448,2641.2,2640.6,0.76725]
[1729135297458,0.37873,2640.8,2640.6,0.76725]
[1729135297668,4.15448,2641.2,2640.6,0.3885]
[1729135297870,0.37874,2640.7,2640.6,0.3885]
[1729135298164,0.94671,2641.1,2640.6,0.3885]
[1729135298365,0.3787,2641.0,2640.9,0.37871]
[1729135298668,0.3988,2641.3,2640.9,0.37871]
[1729135298669,0.37869,2641.1,2640.9,0.37871]
[1729135299771,0.37869,2641.1,2640.9,0.3787]
[1729135299956,3.9856,2641.4,2640.7,0.4163]
[1729135299957,0.3919,2641.4,2641.0,2.66]
[1729135300220,0.17315618,2642.2,2641.3,5.32]
[1729135300365,0.17315618,2642.2,2641.0,6.983]
[1729135300366,3.2078,2642.0,2641.0,3.2078]
[1729135300568,0.3907,2641.9,2641.2,2.66]
[1729135301061,0.3907,2641.9,2641.4,2.66]
[1729135301062,0.37861,2641.7,2641.4,2.66]
[1729135301265,0.3786,2641.7,2641.4,2.66]
[1729135301465,0.3907,2641.9,2641.4,2.66]
[1729135301861,0.3786,2641.7,2641.4,2.66]
[1729135302767,0.3786,2641.8,2641.4,2.66]
[1729135303171,0.3786,2641.7,2641.4,2.66]
[1729135303369,0.37862,2641.5,2641.4,2.66]
[1729135303571,0.37865,2641.3,2641.2,2.66]
[1729135305077,0.4013,2641.4,2640.9,6.253]
[1729135305267,0.37868,2641.2,2640.9,6.253]
[1729135305572,0.4013,2641.4,2640.9,6.253]
[1729135305573,0.37868,2641.1,2640.9,6.253]
[1729135305783,0.76966,2641.3,2640.9,6.253]
[1729135306766,0.391,2641.3,2641.1,2.66]
[1729135307173,0.76965,2641.3,2641.1,2.66]
[1729135307877,0.37867,2641.2,2641.1,2.66]
[1729135308064,0.37867,2641.2,2640.9,6.253]
[1729135308468,0.37869,2641.1,2640.9,6.253]
[1729135308872,0.37869,2641.1,2640.7,0.4163]
[1729135308873,0.7761,2641.3,2640.7,2.66]
[1729135309179,0.7761,2641.3,2640.4,3.2078]
[1729135309180,0.37867,2641.2,2640.9,2.66]
[1729135309380,0.37869,2641.1,2640.9,2.66]
[1729135309639,0.391,2641.3,2640.9,2.66]
[1729135309883,0.37869,2641.1,2640.9,2.66]
[1729135310062,0.76967,2641.3,2640.9,2.66]
[1729135310268,0.391,2641.3,2640.9,2.66]
[1729135310571,0.37867,2641.2,2640.9,2.66]
[1729135310974,0.391,2641.3,2640.9,2.66]
[1729135311176,0.37867,2641.2,2640.9,2.66]
[1729135311673,0.37869,2641.1,2640.9,2.66]
[1729135312172,0.391,2641.3,2640.9,2.66]
[1729135312674,0.37868,2641.2,2640.9,2.66]
[1729135312875,0.391,2641.3,2640.9,2.66]
[1729135313472,0.391,2641.3,2641.0,0.4131]
[1729135313676,0.37868,2641.1,2641.0,0.4131]
[1729135315267,0.391,2641.3,2641.0,0.4131]
[1729135315472,0.37868,2641.1,2641.0,0.4131]
[1729135316075,0.37867,2641.2,2641.0,0.4131]
[1729135317072,0.37868,2641.1,2641.0,0.4131]
[1729135317469,0.37872,2640.9,2640.3,2.66]
[1729135317672,0.37873,2640.8,2640.4,3.6139]
[1729135318069,0.3849,2641.1,2640.5,2.66]
[1729135318567,0.3787,2641.0,2640.5,2.66]
[1729135318771,0.3787,2641.0,2640.8,2.66]
[1729135318977,0.3787,2641.0,2640.9,0.4061]
[1729135319275,0.37869,2641.1,2640.9,0.4061]
[1729135319475,0.37867,2641.2,2640.9,0.4061]
[1729135319671,0.391,2641.3,2641.0,2.66]
[1729135320182,0.76966,2641.3,2641.0,2.66]
[1729135320478,0.77994,2641.4,2641.0,2.66]
[1729135320682,0.37866,2641.3,2641.0,2.66]
[1729135320873,0.77995,2641.4,2641.0,2.66]
[1729135321881,0.37866,2641.3,2641.0,2.66]
[1729135322379,0.77994,2641.4,2641.0,2.66]
[1729135323283,0.37866,2641.3,2641.0,2.66]
[1729135323582,0.4013,2641.4,2641.0,2.66]
[1729135323583,0.77994,2641.4,2641.0,2.66]
[1729135323877,0.37866,2641.3,2641.0,2.66]
[1729135324478,0.4013,2641.4,2641.0,2.66]
[1729135324677,0.77995,2641.4,2641.0,2.66]
[1729135324878,0.37869,2641.1,2640.9,1.2151]
[1729135326777,0.4013,2641.4,2641.0,2.66]
[1729135327086,0.37866,2641.3,2641.0,2.66]
[1729135327281,0.77995,2641.4,2641.0,2.66]
[1729135328991,0.37865,2641.3,2641.0,2.66]
[1729135329189,0.4013,2641.4,2641.0,2.66]
[1729135329391,0.37866,2641.3,2641.0,2.66]
[1729135329888,0.4013,2641.4,2641.0,2.66]
[1729135330186,0.37866,2641.3,2641.0,2.66]
[1729135331580,0.4013,2641.4,2641.0,2.66]
[1729135331581,0.77995,2641.4,2641.0,2.66]
[1729135331782,0.37863,2641.5,2641.0,2.66]
[1729135332578,3.6286,2641.7,2641.4,2.66]
[1729135332579,3.2078,2641.7,2641.4,2.66]
[1729135332881,3.2078,2641.7,2641.5,1.232]
[1729135333691,0.37861,2641.6,2641.5,1.232]
[1729135339091,4.82611968,2641.6,2641.5,1.232]
[1729135339283,0.37861,2641.6,2641.5,1.232]
[1729135339488,4.82611968,2641.6,2641.5,1.232]
[1729135340492,4.44750968,2641.6,2641.2,2.66]
[1729135340790,4.83280968,2641.6,2641.2,3.4716]
[1729135341112,0.37865,2641.3,2641.2,3.4716]
[1729135341278,4.85960968,2641.5,2641.2,3.4716]
[1729135341678,5.23823968,2641.5,2641.2,3.4716]
[1729135342591,0.37867,2641.2,2640.9,0.4064]
[1729135342790,0.4185,2641.1,2640.9,0.4064]
[1729135343592,4.44750968,2641.2,2640.9,0.4064]
[1729135343791,4.44750968,2641.3,2641.0,2.66]
[1729135343984,4.44750968,2641.4,2641.0,2.66]
[1729135344235,4.44750968,2641.3,2641.0,2.66]
[1729135344388,4.44750968,2641.4,2641.0,2.66]
[1729135345788,0.37866,2641.3,2641.0,2.66]
[1729135346094,0.37865,2641.4,2641.0,2.66]
[1729135347582,1.20924,2641.5,2641.1,3.2078]
[1729135347786,1.20924,2641.5,2641.2,0.8113]
[1729135348696,0.8306,2641.5,2641.2,0.8113]
[1729135348997,1.20923,2641.5,2641.2,0.8113]
[1729135349206,3.2078,2642.0,2641.4,3.2078]
[1729135349521,0.3786,2641.7,2641.4,3.2078]
[1729135349718,1.217,2641.9,2641.3,2.66]
[1729135349720,0.37859,2641.8,2641.5,0.4124]
[1729135349935,1.217,2641.9,2641.5,0.4124]
[1729135350020,0.37861,2641.6,2641.5,0.4124]
[1729135350500,1.217,2641.9,2641.5,0.4124]
[1729135350802,0.37861,2641.6,2641.5,0.4124]
[1729135351003,0.37862,2641.6,2641.4,0.0167]
[1729135351203,0.37862,2641.5,2641.4,0.0167]
[1729135351392,0.37861,2641.6,2641.1,0.4257]
[1729135351615,0.37869,2641.1,2640.8,4.0182]
[1729135351893,0.37869,2641.1,2640.8,4.4439]
[1729135352093,0.3787,2641.0,2640.9,0.0167]
[1729135352292,4.3852,2641.4,2640.9,0.0167]
[1729135352486,4.3852,2641.4,2640.8,4.4439]
[1729135352692,0.37871,2641.0,2640.8,4.4439]
[1729135353294,4.82619968,2641.1,2640.8,4.46]
[1729135354000,4.44750968,2641.1,2640.8,4.46]
[1729135354399,4.82618968,2641.1,2640.8,4.46]
[1729135355094,0.37868,2641.1,2640.8,4.46]
[1729135355299,4.82618968,2641.1,2640.8,4.46]
[1729135356596,4.44750968,2641.1,2640.8,4.46]
[1729135357096,4.82617968,2641.2,2640.9,2.66]
[1729135357697,4.82619968,2641.1,2640.9,2.66]
[1729135357895,4.44750968,2641.1,2640.8,4.46]
[1729135358101,0.3787,2641.0,2640.8,4.46]
[1729135358602,0.764,2641.0,2640.8,4.46]
[1729135359501,0.3853,2641.0,2640.8,4.46]
[1729135360895,0.3853,2641.0,2640.8,1.2522]
[1729135361094,0.3853,2641.0,2640.8,4.46]
[1729135361794,0.764,2641.0,2640.8,4.46]
[1729135362597,0.37871,2640.9,2640.8,0.0161]
[1729135362807,0.79181,2640.9,2640.8,0.0161]
[1729135362996,0.79181,2640.9,2640.5,3.2078]
[1729135363199,0.8162,2640.9,2640.6,2.66]
[1729135363402,0.4131,2640.9,2640.6,2.66]
[1729135363795,0.79182,2640.9,2640.6,0.0132]
[1729135364494,0.37873,2640.8,2640.6,0.0132]
[1729135364697,0.37872,2640.8,2640.6,0.0132]
[1729135365403,0.37874,2640.7,2640.6,0.0132]
[1729135365700,0.37873,2640.8,2640.6,0.0132]
[1729135365901,0.79182,2640.9,2640.5,3.2078]
[1729135366610,0.37873,2640.8,2640.5,3.2204]
[1729135366995,0.3864,2640.8,2640.5,3.2204]
[1729135367400,0.76513,2640.8,2640.5,3.2204]
[1729135367899,0.3864,2640.8,2640.5,3.2204]
[1729135368101,4.44750968,2641.0,2640.7,2.66]
[1729135368349,3.2078,2641.6,2640.5,9.2204]
[1729135368350,4.44750968,2641.4,2640.9,2.66]
[1729135368503,4.44750968,2641.4,2641.0,0.8071]
[1729135368696,4.82614968,2641.5,2641.0,0.8071]
[1729135368897,4.44750968,2641.5,2641.0,0.8071]
[1729135369919,0.76745,2641.4,2641.0,0.8071]